bitfinex/quotes_ETHUSD_20250929
["timestamp","ask_amount","ask_price","bid_price","bid_amount"]
[1759144921713,0.0002,4114.0,4113.9,23.03026171]
[1759144924931,0.0002,4114.0,4113.9,19.94326171]
[1759144925344,0.0002,4114.0,4113.9,17.07078344]
[1759144925647,3.8008,4114.0,4113.9,0.14]
[1759144926230,9.0568,4114.0,4113.9,0.14]
[1759144926749,11.62752435,4114.0,4113.9,0.14]
[1759144926905,13.59171967,4114.0,4113.9,0.14]
[1759144927234,13.59091967,4114.0,4113.9,0.14]
[1759144927952,13.59151967,4114.0,4113.9,0.14]
[1759144930144,11.16079532,4114.0,4113.9,0.14]
[1759144930345,13.59151967,4114.0,4113.9,0.14]
[1759144938358,13.59151967,4114.0,4113.8,0.002]
[1759144938359,15.69728944,4113.9,4113.8,0.002]
[1759144938651,13.26872148,4113.7,4113.6,0.002]
[1759144938957,16.35372148,4113.7,4113.6,0.002]
[1759144939252,17.04412148,4113.7,4113.6,0.002]
[1759144939556,17.1416664,4113.7,4113.6,0.002]
[1759144939732,19.10586172,4113.7,4113.6,0.002]
[1759144941534,19.59554725,4113.7,4113.6,0.002]
[1759144943182,6.52574024,4113.7,4113.6,0.002]
[1759144943322,0.38139379,4113.9,4113.6,0.6852]
[1759144943525,0.38139379,4113.9,4113.7,0.6832]
[1759144943789,0.001,4114.0,4113.9,2.43078344]
[1759144943924,6.086,4114.0,4113.8,3.11403133]
[1759144944124,6.086,4114.0,4113.9,2.43078344]
[1759144944125,0.001,4114.0,4113.9,2.43078344]
[1759144944324,3.2068,4114.0,4113.9,16.93078344]
[1759144944747,3.2068,4114.0,4113.9,17.61398344]
[1759144945854,3.2068,4114.0,4113.9,15.1832]
[1759144946243,3.2068,4114.0,4113.9,17.61398344]
[1759144946559,0.1218,4114.0,4113.9,19.6741466]
[1759144946741,3.086,4114.0,4113.9,19.6741466]
[1759144948786,0.001,4114.0,4113.9,19.6741466]
[1759144948981,0.001,4114.0,4113.9,19.7949466]
[1759144951762,0.0002,4114.0,4113.9,19.7949466]
[1759144961010,0.0002,4114.0,4113.9,17.05158344]
[1759144961319,3.7842,4114.0,4113.9,14.5]
[1759144962194,3.7842,4114.0,4113.9,16.93078344]
[1759144962195,3.319,4114.0,4113.9,16.93078344]
[1759144963007,3.0832,4114.0,4113.9,16.93078344]
[1759144963547,3.319,4114.0,4113.9,14.5]
[1759144964317,3.319,4114.0,4113.9,16.93078344]
[1759144964841,3.0832,4114.0,4113.9,16.93078344]
[1759144965341,3.0832,4114.0,4113.9,14.5]
[1759144965644,3.319,4114.0,4113.9,14.5]
[1759144965817,3.0832,4114.0,4113.9,16.93078344]
[1759144966809,4.59853376,4114.0,4113.6,0.002]
[1759144967030,4.82233764,4113.8,4113.6,0.002]
[1759144967243,3.082,4113.7,4113.6,2.43296071]
[1759144967561,3.082,4113.7,4113.6,14.502]
[1759144967562,3.783,4113.7,4113.6,14.502]
[1759144967928,3.082,4113.7,4113.6,14.502]
[1759144968251,8.14013764,4113.7,4113.6,16.93296071]
[1759144968918,8.14013764,4113.7,4113.6,14.502]
[1759144969329,8.60533764,4113.7,4113.6,14.502]
[1759144969519,9.70896457,4113.7,4113.6,14.502]
[1759144969838,15.13986619,4113.7,4113.6,14.502]
[1759144970164,15.13986619,4113.7,4113.6,0.002]
[1759144971066,16.60386619,4113.7,4113.6,0.002]
[1759144972193,17.39586619,4113.7,4113.6,0.002]
[1759144974242,17.77723085,4113.7,4113.6,0.002]
[1759144976848,17.77643085,4113.7,4113.6,0.002]
[1759144980183,6.18479159,4113.7,4113.6,0.002]
[1759144980486,6.082,4113.7,4113.6,0.6957]
[1759144980692,6.082,4113.7,4113.6,0.2384]
[1759144981001,11.46990162,4113.7,4113.6,0.002]
[1759144982262,4.68701981,4113.5,4113.4,0.002]
[1759144982485,15.59135745,4113.5,4113.4,0.002]
[1759144982659,16.29235745,4113.5,4113.4,0.002]
[1759144982855,7.68713801,4113.3,4113.2,0.002]
[1759144983067,7.68725623,4113.1,4113.0,0.002]
[1759144983293,10.76925623,4113.1,4113.0,0.002]
[1759144983594,11.47025623,4113.1,4113.0,0.002]
[1759144984980,11.85169915,4113.1,4113.0,0.002]
[1759144985906,22.48144715,4113.1,4113.0,0.002]
[1759144986809,21.26245715,4113.1,4113.0,0.002]
[1759144986995,16.22214915,4113.1,4113.0,0.002]
[1759144989429,27.98206715,4113.1,4113.0,0.002]
[1759144990679,27.98206715,4113.1,4112.3,0.002]
[1759144990680,7.68731534,4113.0,4112.3,0.002]
[1759144990881,2.256,4112.4,4112.3,0.002]
[1759144991103,32.24797571,4112.4,4112.3,0.002]
[1759144991307,0.792,4111.5,4110.9,0.2446]
[1759144991614,0.792,4111.5,4110.7,0.4664]
[1759144991615,3.1216,4110.9,4110.7,0.4664]
[1759144991814,5.4326757,4110.7,4110.6,0.002]
[1759144992116,10.25501334,4110.7,4110.6,0.002]
[1759144992287,11.96272852,4110.7,4110.6,0.002]
[1759144993434,15.02255081,4110.7,4110.6,0.002]
[1759144994329,15.40422276,4110.7,4110.6,0.002]
[1759144995801,14.94822276,4110.7,4110.6,0.002]
[1759144997198,15.40422276,4110.7,4110.6,0.002]
[1759144997403,20.2265604,4110.7,4110.6,0.002]
[1759144997800,20.2265604,4110.7,4110.3,0.002]
[1759144997801,4.68885325,4110.4,4110.3,0.002]
[1759144998124,20.94112853,4110.4,4110.3,0.002]
[1759144998326,21.16682853,4110.4,4110.3,0.002]
[1759144998514,21.62282853,4110.4,4110.3,0.002]
[1759144999235,21.62282853,4110.4,4110.2,0.002]
[1759144999236,14.67761743,4110.3,4110.2,0.002]
[1759144999536,12.51148686,4109.9,4109.8,0.002]
[1759144999741,15.59348686,4109.9,4109.8,0.002]
[1759145000040,16.27518686,4109.9,4109.8,0.002]
[1759145001604,15.59348686,4109.9,4109.8,0.002]
[1759145001805,16.11828686,4109.9,4109.8,0.002]
[1759145002005,20.15478086,4109.9,4109.8,0.002]
[1759145002216,13.71798686,4109.9,4109.8,0.002]
[1759145002413,29.70973986,4109.9,4109.8,0.002]
[1759145002827,30.09148529,4109.9,4109.8,0.002]
[1759145003417,33.31210029,4109.9,4109.8,0.002]
[1759145004309,17.49990426,4109.9,4109.8,0.002]
[1759145004907,27.38605426,4109.9,4109.8,0.002]
[1759145006009,34.08627226,4109.9,4109.8,0.002]
[1759145006210,29.62745626,4109.9,4109.8,0.002]
[1759145006423,28.63477183,4109.9,4109.8,0.002]
[1759145007036,30.38661383,4109.9,4109.8,0.002]
[1759145007242,29.80002283,4109.9,4109.8,0.002]
[1759145007855,29.54502283,4109.9,4109.8,0.002]
[1759145008436,22.87005883,4109.9,4109.8,0.002]
[1759145009144,31.66259683,4109.9,4109.8,0.002]
[1759145009345,29.88646783,4109.9,4109.8,0.002]
[1759145009656,30.26821326,4109.9,4109.8,0.002]
[1759145010037,30.43411426,4109.9,4109.8,0.002]
[1759145010356,30.89011426,4109.9,4109.8,0.002]
[1759145011055,7.68932684,4109.6,4109.5,0.002]
[1759145011256,10.77132684,4109.6,4109.5,0.002]
[1759145011622,11.45302684,4109.6,4109.5,0.002]
[1759145012029,10.77132684,4109.6,4109.5,0.002]
[1759145012338,4.464,4109.6,4109.5,0.7031]
[1759145012670,3.082,4109.6,4109.5,0.7031]
[1759145013871,6.082,4109.6,4109.5,0.7031]
[1759145014949,9.97932684,4109.6,4109.5,0.2431]
[1759145015149,8.86035096,4109.6,4109.5,0.2431]
[1759145015374,8.86035096,4109.6,4109.5,0.7031]
[1759145015779,11.2936778,4109.6,4109.5,0.7031]
[1759145016493,8.86035096,4109.6,4109.5,0.7031]
[1759145016649,7.546,4109.6,4109.5,0.7031]
[1759145016849,10.77132684,4109.6,4109.5,0.002]
[1759145017151,10.99702684,4109.6,4109.5,0.002]
[1759145017664,10.77132684,4109.6,4109.5,0.002]
[1759145018067,11.45302684,4109.6,4109.5,0.002]
[1759145018455,23.27587584,4109.6,4109.5,0.002]
[1759145018657,23.94640084,4109.6,4109.5,0.002]
[1759145018858,21.60228184,4109.6,4109.5,0.002]
[1759145019652,23.94135405,4109.5,4109.3,0.002]
[1759145019853,32.49832288,4109.4,4109.3,0.002]
[1759145020057,24.22135488,4109.4,4109.3,0.002]
[1759145020885,33.18972288,4109.4,4109.3,0.002]
[1759145023285,33.57153393,4109.4,4109.3,0.002]
[1759145023820,4.68968216,4109.0,4108.9,0.002]
[1759145024027,30.5108887,4109.0,4108.9,0.002]
[1759145024320,32.9609887,4109.0,4108.9,0.002]
[1759145024518,29.1636617,4109.0,4108.9,0.002]
[1759145025587,24.6273817,4109.0,4108.9,0.002]
[1759145025785,17.3805207,4109.0,4108.9,0.002]
[1759145025990,17.6293207,4109.0,4108.9,0.002]
[1759145026190,18.0719207,4109.0,4108.9,0.002]
[1759145026487,17.6293207,4109.0,4108.9,0.002]
[1759145026743,17.6285207,4109.0,4108.9,0.002]
[1759145027320,12.49448794,4108.5,4108.4,0.2384]
[1759145027510,15.57648794,4108.5,4108.4,0.2384]
[1759145027819,15.57648794,4108.5,4108.4,0.6894]
[1759145028005,15.95834359,4108.5,4108.4,0.6894]
[1759145028335,15.95834359,4108.5,4106.7,2.43500004]
[1759145028336,0.792,4108.2,4104.1,2.43655249]
[1759145028536,5.59650961,4106.8,4104.8,5.59650961]
[1759145028739,3.082,4106.7,4106.1,16.93540063]
[1759145028903,3.082,4106.6,4106.1,14.5]
[1759145029109,3.082,4106.5,4106.2,2.38214438]
[1759145029311,3.082,4106.5,4106.2,1.69354438]
[1759145029493,3.082,4106.5,4106.3,0.6886]
[1759145029993,3.082,4106.5,4106.4,0.6886]
[1759145031413,3.082,4106.5,4104.9,2.43606527]
[1759145031414,2.4354737,4106.0,4105.0,2.43605184]
[1759145031615,2.43541971,4106.1,4105.9,0.2376]
[1759145031911,8.67850961,4106.0,4105.9,0.451]
[1759145032411,8.67850961,4106.0,4105.7,0.2376]
[1759145032412,3.082,4106.0,4105.7,0.2376]
[1759145032642,3.082,4106.0,4105.1,14.5]
[1759145032643,5.51747395,4106.0,4105.8,0.6886]
[1759145032844,3.082,4106.0,4105.8,0.6886]
[1759145033017,2.43551961,4105.9,4105.8,0.6886]
[1759145033343,2.43551961,4105.9,4105.1,14.5]
[1759145033344,2.43568553,4105.7,4105.5,0.2376]
[1759145033510,6.874,4105.6,4105.5,0.6886]
[1759145033711,9.30969758,4105.6,4105.5,0.6886]
[1759145034065,6.874,4105.6,4105.5,0.6886]
[1759145034241,0.38210194,4106.1,4105.5,0.6886]
[1759145034242,1.465,4105.9,4105.5,0.6886]
[1759145034405,3.875,4105.8,4105.6,0.6886]
[1759145034610,0.792,4105.8,4105.7,0.6886]
[1759145034822,6.876,4105.8,4105.7,0.2376]
[1759145035217,3.0,4105.8,4105.7,0.6886]
[1759145035422,6.085,4105.8,4105.7,0.6886]
[1759145036261,3.0,4105.8,4105.7,0.6886]
[1759145036551,0.12101276,4106.6,4105.7,0.6886]
[1759145036755,3.0,4106.4,4106.0,2.43544754]
[1759145036940,3.0,4106.2,4106.1,0.6886]
[1759145037249,3.085,4106.2,4106.1,15.1886]
[1759145037945,6.085,4106.2,4106.1,15.1886]
[1759145040136,6.085,4106.2,4106.1,14.5]
[1759145040340,6.085,4106.2,4106.1,14.7376]
[1759145040572,6.085,4106.2,4106.1,15.1886]
[1759145041150,6.085,4106.2,4106.1,17.62400098]
[1759145041352,0.12341934,4106.6,4106.1,15.1886]
[1759145041595,0.1216,4106.3,4106.2,3.12394167]
[1759145041790,1.9286,4106.3,4106.2,3.12394167]
[1759145042793,0.2488,4107.5,4106.2,3.12394167]
[1759145042794,2.43451874,4107.6,4106.7,2.43500321]
[1759145042958,3.0,4107.1,4106.8,0.6886]
[1759145043146,0.1216,4106.7,4106.5,2.43515528]
[1759145043342,0.1216,4106.8,4106.6,0.24351553]
[1759145043585,0.1216,4106.8,4106.7,2.43504517]
[1759145043767,3.0456,4106.8,4106.7,3.12364517]
[1759145044570,3.2046,4106.8,4106.7,3.12364517]
[1759145044972,0.1216,4106.8,4106.7,17.62364517]
[1759145045186,0.2488,4108.2,4107.3,2.43465407]
[1759145045387,3.0,4108.0,4107.4,0.2376]
[1759145045590,0.792,4107.9,4107.4,0.2376]
[1759145045905,3.0,4107.7,4107.5,15.1886]
[1759145046085,3.0,4107.7,4107.5,14.7376]
[1759145046391,3.0,4107.7,4107.6,0.2376]
[1759145046556,3.0,4107.7,4107.6,0.6886]
[1759145047089,0.1216,4107.6,4107.5,14.5]
[1759145047397,2.43473229,4107.3,4106.8,0.2376]
[1759145047553,0.1216,4106.8,4106.5,0.451]
[1759145047888,3.0,4107.1,4106.6,14.5]
[1759145047889,3.083,4106.7,4106.6,14.5]
[1759145049159,3.083,4106.7,4106.6,14.7411]
[1759145049362,3.083,4106.7,4106.6,14.5]
[1759145050488,3.083,4106.7,4106.6,14.7411]
[1759145051661,3.0822,4106.7,4106.6,14.7411]
[1759145052768,3.0822,4106.7,4106.6,14.5]
[1759145053211,6.0822,4106.7,4106.6,14.5]
[1759145053376,3.1216,4106.6,4106.3,0.002]
[1759145053578,2.43520947,4106.5,4106.3,0.002]
[1759145053927,9.31022306,4106.4,4106.3,0.002]
[1759145054277,11.46912306,4106.4,4106.3,0.002]
[1759145054480,12.16783141,4106.4,4106.3,0.002]
[1759145055477,12.549901,4106.4,4106.3,0.002]
[1759145055677,22.90544029,4106.4,4106.3,0.002]
[1759145056109,22.14283629,4106.4,4106.3,0.002]
[1759145056297,21.36270329,4106.4,4106.3,0.002]
[1759145056877,14.671701,4106.4,4106.3,0.002]
[1759145057282,11.588701,4106.4,4106.3,0.002]
[1759145057492,9.466901,4106.4,4106.3,0.002]
[1759145057783,12.104001,4106.4,4106.3,0.002]
[1759145058008,9.94029265,4106.4,4106.3,0.002]
[1759145058212,7.30319265,4106.4,4106.3,0.002]
[1759145058410,9.69229265,4106.4,4106.3,0.002]
[1759145058612,0.38206959,4106.4,4106.3,0.002]
[1759145058814,6.14829265,4106.4,4106.3,0.002]
[1759145059078,9.94029265,4106.4,4106.3,0.002]
[1759145059296,7.25706959,4106.4,4106.3,0.002]
[1759145059511,9.69229265,4106.4,4106.3,0.002]
[1759145060322,7.25706959,4106.4,4106.3,0.002]
[1759145060541,9.69229265,4106.4,4106.3,0.002]
[1759145060744,7.25706959,4106.4,4106.3,0.002]
[1759145060946,9.69229265,4106.4,4106.3,0.002]
[1759145062850,7.25706959,4106.4,4106.3,0.002]
[1759145063217,6.46506959,4106.4,4106.3,0.2441]
[1759145063404,6.46506959,4106.4,4106.3,0.6915]
[1759145064039,3.38206959,4106.4,4106.3,0.6915]
[1759145064248,6.083,4106.4,4106.3,3.12678237]
[1759145065934,7.548,4106.4,4106.3,3.12678237]
[1759145066101,6.083,4106.4,4106.3,0.6915]
[1759145066833,6.083,4106.4,4106.3,15.1915]
[1759145067004,6.083,4106.4,4106.3,17.62678237]
[1759145067807,6.083,4106.4,4106.3,15.1915]
[1759145068728,0.001,4106.7,4106.3,17.62678237]
[1759145069038,6.2046,4106.6,4106.5,2.43513168]
[1759145069221,6.2046,4106.6,4106.5,3.12463168]
[1759145069421,6.2046,4106.6,4106.5,0.6895]
[1759145069739,6.2046,4106.6,4106.5,3.12466376]
[1759145071008,3.0,4106.6,4106.5,3.12466376]
[1759145071205,3.0,4106.6,4106.5,3.7487928]
[1759145071437,6.083,4106.6,4106.5,3.7487928]
[1759145071743,0.001,4106.7,4106.6,2.43510446]
[1759145072041,2.664,4106.7,4106.6,3.12460446]
[1759145072244,2.664,4106.7,4106.6,2.88250446]
[1759145072431,2.664,4106.7,4106.6,0.2421]
[1759145072751,2.664,4106.7,4106.6,14.7421]
[1759145073053,2.664,4106.7,4106.6,17.62460446]
[1759145073257,2.664,4106.7,4106.6,14.5]
[1759145073746,2.664,4106.7,4106.6,14.7421]
[1759145074849,2.664,4106.7,4106.6,17.17720446]
[1759145076248,2.664,4106.7,4106.6,17.62460446]
[1759145076607,2.6632,4106.7,4106.6,17.62460446]
[1759145076809,2.6632,4106.7,4106.6,19.63078697]
[1759145077213,2.6632,4106.7,4106.6,17.62460446]
[1759145078758,2.6632,4106.7,4106.6,14.5]
[1759145079550,2.6632,4106.7,4106.6,16.93510446]
[1759145080840,2.6632,4106.7,4106.6,17.60800446]
[1759145081825,0.0002,4106.7,4106.6,17.60800446]
[1759145082026,0.0002,4106.7,4106.6,19.61252683]
[1759145082224,0.0002,4106.7,4106.6,19.73412683]
[1759145083056,0.0002,4106.7,4106.6,22.73412683]
[1759145083755,0.0002,4106.7,4106.6,19.73412683]
[1759145084652,0.0002,4106.7,4106.6,22.81712683]
[1759145088266,0.0002,4106.7,4106.6,26.60912683]
[1759145090966,0.0002,4106.7,4106.6,26.60812683]
[1759145092661,0.001,4107.2,4107.1,2.43480801]
[1759145092963,0.001,4107.2,4107.1,9.00377724]
[1759145093163,0.001,4107.2,4107.1,9.89589262]
[1759145093362,0.001,4107.2,4107.1,24.39589262]
[1759145097737,0.001,4107.2,4107.1,20.64099262]
[1759145097978,0.001,4107.2,4107.1,20.54337724]
[1759145098180,0.001,4107.2,4107.1,23.62437724]
[1759145098513,0.001,4107.6,4107.5,2.4345709]
[1759145098712,0.001,4107.6,4107.5,5.5155709]
[1759145098919,0.001,4107.6,4107.5,6.73219256]
[1759145099102,0.4586,4107.6,4107.5,6.73219256]
[1759145099266,0.4586,4107.6,4107.5,21.23219256]
[1759145099472,0.001,4108.3,4108.2,2.43415607]
[1759145100517,0.2479,4108.3,4108.2,2.43415607]
[1759145101011,0.2479,4108.3,4108.2,2.45849763]
[1759145101012,0.001,4108.3,4108.2,2.45849763]
[1759145101176,0.001,4108.3,4108.2,3.06937048]
[1759145101377,0.001,4108.3,4108.2,3.04502892]
[1759145101617,0.0002,4108.3,4108.2,3.04502892]
[1759145101907,0.6428,4108.3,4108.2,3.04502892]
[1759145102121,0.6428,4108.3,4108.2,2.55575607]
[1759145104098,0.2471,4108.3,4108.2,2.55575607]
[1759145104418,0.0002,4108.3,4108.2,2.55575607]
[1759145104979,0.0002,4108.3,4108.2,2.58009763]
[1759145105174,0.0002,4108.3,4108.2,3.05718892]
[1759145107718,0.0002,4108.3,4108.2,6.13718892]
[1759145108795,0.0002,4108.3,4108.2,6.81008892]
[1759145109241,0.0002,4108.3,4108.2,6.80578892]
[1759145111608,0.0002,4108.3,4108.2,21.30578892]
[1759145113035,0.0002,4108.3,4108.2,22.09778892]
[1759145113915,0.0002,4108.3,4108.2,25.09778892]
[1759145114323,0.001,4108.8,4108.7,6.22585985]
[1759145114629,1e-08,4109.8,4109.7,2.43326763]
[1759145114804,1e-08,4109.8,4109.7,5.51326763]
[1759145115133,1e-08,4109.8,4109.7,20.13486763]
[1759145117109,1e-08,4109.8,4109.7,20.79036763]
[1759145117423,1e-08,4109.8,4109.7,23.1127388]
[1759145118030,0.2486,4110.7,4109.8,2.43320842]
[1759145118031,0.001,4110.7,4109.8,2.43320842]
[1759145118338,0.001,4110.7,4110.6,2.43273488]
[1759145118708,0.001,4110.7,4110.6,16.93273488]
[1759145121145,0.2486,4110.7,4110.6,16.93273488]
[1759145121643,0.001,4110.7,4110.6,16.93273488]
[1759145121943,0.001,4110.7,4110.6,19.17718959]
[1759145123157,0.001,4110.7,4110.6,22.25618959]
[1759145126353,0.001,4110.7,4110.6,20.01173488]
[1759145126552,0.0002,4110.7,4110.6,20.01173488]
[1759145126755,0.0002,4110.7,4110.6,20.01073488]
[1759145128053,0.0002,4110.7,4110.6,20.13233488]
[1759145128436,0.0002,4110.7,4110.6,20.56193488]
[1759145128634,0.0002,4110.7,4110.6,23.10989959]
[1759145129651,0.0002,4110.7,4110.6,22.88399959]
[1759145130051,0.0002,4110.7,4110.6,22.68029959]
[1759145130377,0.0002,4110.7,4110.6,23.10989959]
[1759145132879,0.0002,4110.7,4110.6,22.45439959]
[1759145133274,0.0002,4110.7,4110.6,23.10989959]
[1759145133941,0.0002,4110.7,4110.6,22.88399959]
[1759145134140,0.0002,4110.7,4110.6,22.45439959]
[1759145136583,0.0002,4110.7,4110.6,23.10989959]
[1759145138930,0.0002,4110.7,4110.6,22.45439959]
[1759145139132,0.2487,4110.7,4110.6,17.05433488]
[1759145139320,0.2487,4110.7,4110.6,20.13133488]
[1759145139842,0.6444,4110.7,4110.6,17.05433488]
[1759145140313,0.0002,4110.7,4110.6,17.05433488]
[1759145141727,0.0002,4110.7,4110.6,20.79693488]
[1759145141925,0.0002,4110.7,4110.6,23.12010959]
[1759145142092,0.0002,4110.7,4110.6,23.21765236]
[1759145143011,0.0002,4110.7,4110.6,24.00965236]
[1759145143327,1e-08,4111.6,4111.5,2.43220235]
[1759145143515,1e-08,4111.6,4111.5,6.0199725]
[1759145143711,1e-08,4111.6,4111.5,6.78285048]
[1759145144095,1e-08,4111.6,4111.5,6.11725048]
[1759145144399,1e-08,4111.6,4111.5,5.63080235]
[1759145145816,1e-08,4111.6,4111.5,20.13080235]
[1759145147130,0.39570001,4111.6,4111.5,17.05380235]
[1759145147295,0.64420001,4111.6,4111.5,17.05380235]
[1759145150327,1e-08,4111.6,4111.5,17.05380235]
[1759145151597,0.24770001,4111.9,4111.8,2.4320249]
[1759145151824,5.70740106,4112.3,4112.2,2.43178833]
[1759145152029,6.58574117,4112.3,4112.2,2.43178833]
[1759145152428,0.1208,4112.3,4112.2,2.43178833]
[1759145152623,0.5165,4112.3,4112.2,2.43178833]
[1759145153634,0.765,4112.3,4112.2,2.43178833]
[1759145155327,0.765,4112.3,4112.2,16.93178833]
[1759145156035,0.766,4112.3,4112.2,16.93178833]
[1759145156736,0.1218,4112.3,4112.2,16.93178833]
[1759145157835,0.3703,4112.3,4112.2,16.93178833]
[1759145158040,3.4463,4112.3,4112.2,16.93178833]
[1759145158267,3.4463,4112.3,4112.2,2.43178833]
[1759145158769,3.4463,4112.3,4112.2,16.93178833]
[1759145159433,0.001,4112.3,4112.2,16.93178833]
[1759145159629,0.001,4112.3,4112.2,19.6545535]
[1759145159967,0.001,4112.3,4112.2,18.9889535]
[1759145160172,0.001,4112.3,4112.2,17.05258833]
[1759145161749,0.001,4112.3,4112.2,2.55258833]
[1759145162265,0.001,4112.3,4112.2,17.05258833]
[1759145163034,0.001,4112.3,4112.2,17.71818833]
[1759145166069,0.001,4112.3,4112.2,17.05258833]
[1759145166490,0.001,4112.3,4112.2,19.0010335]
[1759145167563,0.001,4112.3,4112.2,17.05258833]
[1759145170782,0.001,4112.3,4112.2,17.74568833]
[1759145171473,0.001,4112.3,4112.2,17.51558833]
[1759145171779,0.001,4112.3,4112.2,17.05258833]
[1759145172681,0.001,4112.3,4112.2,17.74568833]
[1759145172866,0.001,4112.3,4112.2,20.0709435]
[1759145173078,0.001,4112.3,4112.2,23.1449435]
[1759145175489,0.001,4112.3,4112.2,23.2667435]
[1759145176707,0.0002,4112.3,4112.2,23.2667435]
[1759145177412,0.0002,4112.3,4112.2,22.6819435]
[1759145177803,0.0002,4112.3,4112.2,23.1168435]
[1759145183825,0.0002,4112.3,4112.2,23.3507435]
[1759145186942,0.0002,4112.3,4112.2,20.2767435]
[1759145187244,0.0002,4112.3,4112.2,19.3778435]
[1759145187444,0.0002,4112.3,4112.2,22.4508435]
[1759145187643,0.0002,4112.3,4112.2,19.3778435]
[1759145187858,0.2331,4112.3,4112.2,17.05258833]
[1759145188149,0.6288,4112.3,4112.2,20.12558833]
[1759145188377,0.2331,4112.3,4112.2,20.12558833]
[1759145188536,0.0002,4112.3,4112.2,20.12558833]
[1759145189258,0.0002,4112.3,4112.2,17.05258833]
[1759145189454,0.0002,4112.3,4112.2,19.9704335]
[1759145190448,0.0002,4112.3,4112.2,19.3083335]
[1759145192968,0.0002,4112.3,4112.2,19.5355335]
[1759145193174,0.0002,4112.3,4112.2,19.9704335]
[1759145196286,0.0002,4112.3,4112.2,19.3083335]
[1759145199523,0.0002,4112.3,4112.2,19.9904335]
[1759145200488,0.0002,4112.3,4112.2,19.3083335]
[1759145200688,0.0002,4112.3,4112.2,19.9904335]
[1759145201560,0.0004,4112.8,4112.7,2.43149269]
[1759145206015,0.0004,4112.8,4112.7,2.45580761]
[1759145206306,0.0004,4112.8,4112.7,3.54413108]
[1759145208607,0.0004,4112.8,4112.7,2.86203108]
[1759145209085,0.0002,4114.0,4113.7,2.43090162]
[1759145209281,0.0002,4114.0,4113.9,2.43078344]
[1759145209682,0.0002,4114.0,4113.9,16.93078344]
[1759145209986,0.89107095,4114.0,4113.9,14.5]
[1759145210296,0.89107095,4114.0,4113.0,2.43127388]
[1759145210499,4.82568254,4113.6,4113.5,2.43101981]
[1759145210700,5.22138254,4113.6,4113.5,16.93101981]
[1759145211139,5.25708254,4113.6,4113.5,16.93101981]
[1759145211842,4.82568254,4113.9,4113.8,2.43084253]
[1759145212028,4.82568254,4113.9,4113.6,2.43096071]
[1759145212233,0.3957,4113.8,4113.7,2.43090162]
[1759145212650,0.4314,4113.8,4113.7,2.43090162]
[1759145213438,0.4314,4113.8,4113.5,16.93097494]
[1759145213638,0.4314,4113.7,4113.6,2.43096071]
[1759145213843,5.25708254,4113.7,4113.6,2.43096071]
[1759145214041,8.25708254,4113.7,4113.6,2.43096071]
[1759145214564,8.25708254,4113.7,4113.5,16.93100375]
[1759145214749,0.4314,4113.6,4113.5,16.93100375]
[1759145215944,3.5024,4113.6,4113.5,14.5]
[1759145216634,3.88373344,4113.6,4113.5,14.5]
[1759145217039,3.88373344,4113.6,4113.5,16.93101981]
[1759145217238,3.88373344,4113.6,4113.5,14.5]
[1759145217423,8.70941598,4113.6,4113.5,14.5]
[1759145217829,8.70941598,4113.6,4113.5,16.93101981]
[1759145218360,3.1208,4113.5,4113.1,2.43124229]
[1759145218558,4.82568254,4113.2,4113.1,2.43125623]
[1759145218759,8.32808254,4113.2,4113.1,16.93125623]
[1759145218962,8.29238254,4113.2,4113.1,16.93125623]
[1759145219530,8.29238254,4113.2,4112.6,2.43154441]
[1759145219531,3.0,4113.1,4112.6,2.43154441]
[1759145219860,4.82568254,4112.7,4112.6,2.43154441]
[1759145220069,7.89668254,4112.7,4112.6,14.5]
[1759145220269,8.29238254,4112.7,4112.6,14.5]
[1759145220450,8.29238254,4112.7,4112.6,16.93155181]
[1759145220651,3.0,4112.6,4111.0,2.43448817]
[1759145220850,4.82568254,4112.2,4111.9,2.43192312]
[1759145221055,7.89668254,4112.2,4111.9,2.43192312]
[1759145221250,7.89668254,4112.2,4112.0,14.5]
[1759145221639,7.89668254,4112.2,4112.1,2.43384747]
[1759145222247,7.89668254,4112.2,4112.1,16.93384747]
[1759145222644,7.89668254,4112.2,4112.1,14.502]
[1759145222971,7.89668254,4112.2,4112.1,16.93384747]
[1759145223749,3.071,4112.2,4112.1,16.93384747]
[1759145224266,3.0,4112.5,4112.4,2.43167007]
[1759145224658,6.071,4112.5,4112.4,2.67227007]
[1759145225562,6.071,4112.5,4112.4,2.43167007]
[1759145225764,6.071,4112.5,4112.1,14.502]
[1759145225971,4.82568254,4112.3,4112.1,14.502]
[1759145226171,3.071,4112.2,4112.1,16.93384747]
[1759145226539,3.0702,4112.2,4112.1,16.93384747]
[1759145227453,4.82568254,4112.3,4112.2,2.43178833]
[1759145227654,7.89668254,4112.3,4112.2,2.43178833]
[1759145227873,4.82568254,4112.3,4112.2,2.43178833]
[1759145228062,7.89668254,4112.3,4112.2,2.43178833]
[1759145229605,7.89668254,4112.3,4112.2,16.93178833]
[1759145229772,11.32808254,4112.3,4112.2,14.5]
[1759145230551,3.0,4112.2,4112.1,0.002]
[1759145230951,3.4314,4112.2,4112.1,0.002]
[1759145231645,4.8964,4112.2,4112.1,0.002]
[1759145232777,4.8607,4112.2,4112.1,0.002]
[1759145233075,6.071,4112.2,4112.1,0.002]
[1759145233277,3.0,4112.7,4112.1,0.002]
[1759145233495,3.0,4112.5,4112.2,2.43176948]
[1759145233697,7.82568254,4112.3,4112.2,2.43176948]
[1759145233996,10.89668254,4112.3,4112.2,2.43176948]
[1759145234291,10.89668254,4112.3,4112.2,3.13286948]
[1759145234491,8.20714662,4112.7,4112.6,2.43155181]